bitfinex/quotes_BTCUSD_20251102
["timestamp","ask_amount","ask_price","bid_price","bid_amount"]
[1762076649605,0.42236537,110790.0,110780.0,0.24042703]
[1762076649819,0.5757498,110790.0,110780.0,0.05988903]
[1762076650929,0.5841722,110790.0,110780.0,0.05988903]
[1762076651421,0.5757498,110790.0,110780.0,0.05988903]
[1762076651635,0.5757498,110790.0,110780.0,0.03578903]
[1762076651848,0.5757498,110790.0,110780.0,0.24042703]
[1762076654445,0.57553959,110790.0,110780.0,0.24042703]
[1762076654853,0.39501789,110790.0,110780.0,0.24042703]
[1762076655499,0.00678979,110790.0,110780.0,0.24042703]
[1762076658288,0.06678979,110790.0,110780.0,0.24042703]
[1762076661831,0.06678979,110790.0,110780.0,0.05988903]
[1762076661832,0.63553959,110790.0,110780.0,0.05988903]
[1762076662257,0.65108959,110790.0,110780.0,0.03578903]
[1762076662473,0.26286149,110790.0,110780.0,0.03578903]
[1762076662688,0.65108959,110790.0,110780.0,0.03578903]
[1762076662897,1.07549997,110790.0,110780.0,0.03578903]
[1762076663117,0.68727187,110790.0,110780.0,0.00761903]
[1762076663329,0.68727187,110790.0,110780.0,0.02331903]
[1762076664619,0.67172187,110790.0,110780.0,0.03580903]
[1762076664843,0.67172187,110790.0,110780.0,0.05938903]
[1762076665911,0.67172187,110790.0,110780.0,0.23992703]
[1762076666849,0.67172187,110790.0,110780.0,0.05938903]
[1762076667509,0.67172187,110790.0,110780.0,0.03580903]
[1762076667510,0.68727187,110790.0,110780.0,0.03580903]
[1762076669683,0.63553959,110790.0,110780.0,0.21634703]
[1762076669887,0.06678979,110790.0,110780.0,0.24047703]
[1762076670087,0.45501789,110790.0,110780.0,0.24047703]
[1762076670304,0.24731149,110790.0,110780.0,0.24047703]
[1762076670925,0.63553959,110790.0,110780.0,0.24047703]
[1762076671128,0.65108959,110790.0,110780.0,0.21634703]
[1762076671627,0.63553959,110790.0,110780.0,0.24047703]
[1762076673654,0.45501789,110790.0,110780.0,0.24047703]
[1762076673859,0.06678979,110790.0,110780.0,0.24047703]
[1762076674070,0.45501789,110790.0,110780.0,0.24047703]
[1762076674691,0.06678979,110790.0,110780.0,0.24047703]
[1762076675077,0.24731149,110790.0,110780.0,0.24047703]
[1762076675300,0.24731149,110790.0,110780.0,0.05993903]
[1762076675506,0.63553959,110790.0,110780.0,0.05993903]
[1762076677486,0.24731149,110790.0,110780.0,0.05993903]
[1762076677684,0.63553959,110790.0,110780.0,0.05993903]
[1762076681388,0.63533228,110790.0,110780.0,0.05993903]
[1762076684176,0.63533228,110790.0,110780.0,0.24047703]
[1762076684426,0.63533228,110790.0,110780.0,0.05993903]
[1762076688275,0.63533228,110790.0,110780.0,0.25853083]
[1762076688485,0.63533228,110790.0,110780.0,0.24047703]
[1762076689166,0.24731149,110790.0,110780.0,0.24047703]
[1762076689381,0.63533228,110790.0,110780.0,0.05993903]
[1762076689571,0.63533228,110790.0,110780.0,0.24047703]
[1762076689826,0.63533228,110790.0,110780.0,0.05993903]
[1762076690713,0.63533228,110790.0,110780.0,0.24047703]
[1762076693171,0.45481058,110790.0,110780.0,0.24047703]
[1762076693427,0.06678979,110790.0,110780.0,0.24047703]
[1762076693646,0.00678979,110790.0,110780.0,0.24047703]
[1762076695169,0.00678979,110790.0,110780.0,0.62849782]
[1762076695354,0.00678979,110790.0,110780.0,1.01651861]
[1762076696480,0.00478979,110790.0,110780.0,1.01651861]
[1762076696691,0.59696122,110820.0,110800.0,0.18049181]
[1762076696903,0.60539559,110820.0,110810.0,0.1190059]
[1762076697192,0.60539559,110820.0,110810.0,0.1431359]
[1762076698265,0.61139559,110820.0,110810.0,0.32862502]
[1762076698485,0.2233748,110820.0,110810.0,0.1481359]
[1762076698699,0.61339559,110820.0,110810.0,0.1481359]
[1762076698917,0.61339559,110820.0,110810.0,0.32862502]
[1762076699123,0.58551799,110820.0,110810.0,0.32862502]
[1762076699348,0.58551799,110820.0,110810.0,0.1481359]
[1762076700451,0.97353878,110820.0,110810.0,0.05733]
[1762076701172,1.03641449,110820.0,110810.0,0.005]
[1762076701401,1.81150702,110820.0,110810.0,0.005]
[1762076701645,1.83863894,110820.0,110810.0,0.005]
[1762076701862,4.8071172,110820.0,110810.0,0.005]
[1762076702514,4.8051172,110820.0,110810.0,0.005]
[1762076702735,4.8101172,110820.0,110810.0,0.005]
[1762076703185,3.72646388,110820.0,110810.0,0.005]
[1762076703396,0.18050541,110800.0,110790.0,0.01223]
[1762076703615,0.97182699,110800.0,110790.0,0.02852]
[1762076703846,0.97182699,110800.0,110790.0,0.05333]
[1762076704074,0.95654699,110800.0,110790.0,0.05333]
[1762076704783,0.96154699,110800.0,110790.0,0.05633]
[1762076705003,0.96354699,110800.0,110790.0,0.05633]
[1762076705647,0.5755262,110800.0,110790.0,0.05633]
[1762076706074,0.96354699,110800.0,110790.0,0.05633]
[1762076706289,0.5755262,110800.0,110790.0,0.05612]
[1762076706690,0.96354699,110800.0,110790.0,0.05612]
[1762076706898,0.97882699,110800.0,110790.0,0.03131]
[1762076707747,1.068646,110800.0,110790.0,0.03131]
[1762076707955,0.97882699,110800.0,110790.0,0.03131]
[1762076708365,0.99001699,110800.0,110790.0,0.03131]
[1762076708596,0.19869541,110800.0,110790.0,0.05612]
[1762076708799,0.99001699,110800.0,110790.0,0.05612]
[1762076709003,0.97473699,110800.0,110790.0,0.05612]
[1762076710524,0.96354699,110800.0,110790.0,0.05612]
[1762076710738,0.18750541,110800.0,110790.0,0.05612]
[1762076710940,0.96354699,110800.0,110790.0,0.05612]
[1762076711761,0.99068124,110800.0,110790.0,0.05612]
[1762076712383,1.43578025,110800.0,110790.0,0.01502]
[1762076712606,1.43578025,110800.0,110790.0,0.03131]
[1762076712806,1.34596124,110800.0,110790.0,0.03131]
[1762076713034,1.33068124,110800.0,110790.0,0.05612]
[1762076714899,5.2341138,110800.0,110790.0,0.003]
[1762076715133,4.87633111,110800.0,110790.0,0.003]
[1762076715353,4.96715012,110800.0,110790.0,0.003]
[1762076716487,3.7205217,110790.0,110780.0,0.00461903]
[1762076716705,4.52760328,110790.0,110780.0,0.00461903]
[1762076718253,4.53360328,110790.0,110780.0,0.00661903]
[1762076718467,4.54217328,110790.0,110780.0,0.00661903]
[1762076718675,4.63199229,110790.0,110780.0,0.00661903]
[1762076719561,4.65139841,110790.0,110780.0,0.00661903]
[1762076719991,4.65982067,110790.0,110780.0,0.00661903]
[1762076720451,4.65139841,110790.0,110780.0,0.00661903]
[1762076720891,4.68758069,110790.0,110780.0,0.00661903]
[1762076721112,5.12660128,110790.0,110780.0,0.00661903]
[1762076721333,4.73858049,110790.0,110780.0,0.00661903]
[1762076721815,4.73458049,110790.0,110780.0,0.00661903]
[1762076722242,4.74719049,110790.0,110780.0,0.00461903]
[1762076722671,4.73978437,110790.0,110780.0,0.00561903]
[1762076722919,4.7591701,110790.0,110780.0,0.00561903]
[1762076724193,4.73978437,110790.0,110780.0,0.00561903]
[1762076725031,4.73978437,110790.0,110780.0,0.03290903]
[1762076725032,4.58320556,110790.0,110780.0,0.03290903]
[1762076725236,4.58320556,110790.0,110780.0,0.05667903]
[1762076725237,4.14372249,110790.0,110780.0,0.05667903]
[1762076725714,4.13915249,110790.0,110780.0,0.05667903]
[1762076726122,4.17533477,110790.0,110780.0,0.05667903]
[1762076726751,4.16333477,110790.0,110780.0,0.05567903]
[1762076726963,0.180538,110780.0,110770.0,0.00658069]
[1762076727170,3.85143233,110780.0,110770.0,0.00014534]
[1762076727381,0.7215706,110760.0,110750.0,0.001]
[1762076727597,0.7373306,110760.0,110750.0,0.00148467]
[1762076727803,1.99021198,110760.0,110750.0,0.00214196]
[1762076728045,2.00597198,110760.0,110750.0,0.00214196]
[1762076728257,2.03312069,110760.0,110750.0,0.00214196]
[1762076728669,0.86905832,110760.0,110750.0,0.00214196]
[1762076728884,2.03312069,110760.0,110750.0,0.00214196]
[1762076729090,1.6450999,110760.0,110750.0,0.00214196]
[1762076729351,2.03312069,110760.0,110750.0,0.00214196]
[1762076729563,2.04312069,110760.0,110750.0,0.00614196]
[1762076729765,1.6393399,110760.0,110750.0,0.00614196]
[1762076730205,1.6443399,110760.0,110750.0,0.00714196]
[1762076731037,1.6443399,110760.0,110750.0,0.02259196]
[1762076731488,1.30960899,110760.0,110750.0,0.02259196]
[1762076731927,1.30960899,110760.0,110750.0,0.00714196]
[1762076732555,1.21978998,110760.0,110750.0,0.02259196]
[1762076733493,1.67786065,110760.0,110750.0,0.00714196]
[1762076733705,1.70727331,110760.0,110750.0,0.00714196]
[1762076734137,4.70727331,110760.0,110750.0,0.00714196]
[1762076734351,4.94345559,110760.0,110750.0,0.00714196]
[1762076734577,5.0332746,110760.0,110750.0,0.00714196]
[1762076735395,5.03215894,110760.0,110750.0,0.00314196]
[1762076735644,5.01674628,110760.0,110750.0,0.00514196]
[1762076736297,5.01674628,110760.0,110750.0,0.00414196]
[1762076736505,5.01174628,110760.0,110750.0,0.00414196]
[1762076736708,5.01974628,110760.0,110750.0,0.00414196]
[1762076737352,5.05915893,110760.0,110750.0,1e-08]
[1762076737566,5.0869826,110760.0,110750.0,1e-08]
[1762076737781,5.05915893,110760.0,110750.0,1e-08]
[1762076738434,3.61778549,110740.0,110730.0,0.0004]
[1762076738643,4.17237638,110740.0,110730.0,0.0004]
[1762076738862,4.18813638,110740.0,110730.0,0.0004]
[1762076739293,4.21529375,110740.0,110730.0,0.0004]
[1762076740377,4.22029375,110740.0,110730.0,0.0004]
[1762076740589,4.22629375,110740.0,110730.0,0.0004]
[1762076741080,3.93786073,110740.0,110730.0,0.0004]
[1762076741289,4.13786073,110740.0,110730.0,0.0004]
[1762076741704,3.93786073,110740.0,110730.0,0.0004]
[1762076743385,4.1749949,110740.0,110730.0,0.0004]
[1762076744215,4.1749949,110740.0,110730.0,0.00083833]
[1762076744418,4.26481391,110740.0,110730.0,0.00083833]
[1762076745424,3.58636907,110740.0,110730.0,0.00083833]
[1762076745631,4.21187163,110740.0,110730.0,0.02776833]
[1762076745836,4.24805391,110740.0,110730.0,0.02776833]
[1762076746783,0.76784778,110740.0,110730.0,0.05234833]
[1762076746993,0.80403006,110740.0,110730.0,0.05234833]
[1762076747212,0.81979006,110740.0,110730.0,0.05234833]
[1762076747619,0.80403006,110740.0,110730.0,0.05234833]
[1762076747825,1.4824749,110740.0,110730.0,0.05234833]
[1762076748049,1.4824749,110740.0,110730.0,0.23296785]
[1762076748050,0.89384907,110740.0,110730.0,0.23296785]
[1762076748264,0.89384907,110740.0,110730.0,0.05234833]
[1762076748739,1.57229391,110740.0,110730.0,0.05234833]
[1762076750691,1.58805391,110740.0,110730.0,0.05234833]
[1762076750894,0.89384907,110740.0,110730.0,0.05234833]
[1762076751106,1.58805391,110740.0,110730.0,0.02776833]
[1762076751519,1.29808237,110740.0,110730.0,0.02776833]
[1762076751934,4.29808237,110740.0,110730.0,0.02776833]
[1762076752139,4.29808237,110740.0,110730.0,0.01231833]
[1762076752765,4.29808237,110740.0,110730.0,0.02776833]
[1762076753373,4.30596237,110740.0,110730.0,0.02776833]
[1762076753587,1.30596237,110740.0,110730.0,0.02776833]
[1762076757393,1.19250336,110740.0,110730.0,0.05234833]
[1762076758167,1.01190015,110740.0,110730.0,0.23296785]
[1762076758412,1.19250336,110740.0,110730.0,0.05234833]
[1762076758576,1.19250336,110740.0,110730.0,0.23296785]
[1762076758800,1.19250336,110740.0,110730.0,0.05234833]
[1762076760238,1.29788237,110740.0,110730.0,0.05234833]
[1762076760454,1.29788237,110740.0,110730.0,0.02776833]
[1762076760883,1.29788237,110740.0,110730.0,0.01231833]
[1762076761140,1.29788237,110740.0,110730.0,0.02771833]
[1762076761586,1.29788237,110740.0,110730.0,0.01231833]
[1762076761806,1.29788237,110740.0,110730.0,0.00083833]
[1762076762250,1.73152833,110740.0,110730.0,0.00083833]
[1762076762436,1.31364237,110740.0,110730.0,0.00083833]
[1762076765595,1.29788237,110740.0,110730.0,0.00083833]
[1762076765809,1.29788237,110740.0,110730.0,0.01623833]
[1762076766249,1.32569426,110740.0,110730.0,0.01623833]
[1762076766478,1.31727664,110740.0,110730.0,0.00083833]
[1762076768305,1.31727664,110740.0,110730.0,0.01623833]
[1762076770669,1.31727664,110740.0,110730.0,0.00083833]
[1762076771197,1.31727664,110740.0,110730.0,0.01623833]
[1762076771635,1.22745763,110740.0,110730.0,0.01623833]
[1762076771836,0.58726948,110740.0,110730.0,0.32356375]
[1762076772038,0.0110872,110740.0,110730.0,0.32356375]
[1762076773042,0.0060872,110740.0,110730.0,0.32356375]
[1762076773244,0.18069041,110740.0,110730.0,0.32356375]
[1762076773479,0.18669041,110740.0,110730.0,0.32356375]
[1762076773924,0.18169041,110740.0,110730.0,0.32356375]
[1762076774335,0.18769041,110740.0,110730.0,0.32356375]
[1762076774545,0.0070872,110740.0,110730.0,0.32356375]
[1762076775300,0.18769041,110740.0,110730.0,0.14294423]
[1762076775514,0.0070872,110740.0,110730.0,0.32356375]
[1762076775932,0.18769041,110740.0,110730.0,0.32356375]
[1762076776140,0.0070872,110740.0,110730.0,0.32356375]
[1762076776559,0.18769041,110740.0,110730.0,0.32356375]
[1762076776992,0.0070872,110740.0,110730.0,0.32356375]
[1762076778482,0.18769041,110740.0,110730.0,0.14294423]
[1762076778694,0.60887795,110740.0,110730.0,0.05213833]
[1762076778954,0.60887795,110740.0,110730.0,0.32356375]
[1762076779178,0.18769041,110740.0,110730.0,0.32356375]
[1762076779395,0.0070872,110740.0,110730.0,0.32356375]
[1762076781382,0.0070872,110740.0,110730.0,0.71203705]
[1762076783349,0.00106308,110740.0,110730.0,0.32356375]
[1762076783581,0.59640619,110770.0,110750.0,0.1959669]
[1762076783793,0.59689081,110770.0,110760.0,0.03959]
[1762076784247,0.59687689,110770.0,110750.0,0.1805869]
[1762076784459,0.1805706,110760.0,110750.0,0.1805869]
[1762076784680,0.1805706,110760.0,110750.0,0.2077969]
[1762076784896,0.1805706,110760.0,110750.0,0.2231769]
[1762076785756,0.1845706,110760.0,110750.0,0.2241769]
[1762076785969,0.1845706,110760.0,110750.0,0.2211769]
[1762076786389,0.1885706,110760.0,110750.0,0.2261769]
[1762076786879,0.008,110760.0,110750.0,0.2261769]
[1762076787310,0.008,110760.0,110750.0,0.3169828]
[1762076793402,0.008,110760.0,110750.0,0.3291028]
[1762076793829,0.1885706,110760.0,110750.0,0.3291028]
[1762076794039,0.008,110760.0,110750.0,0.3291028]
[1762076805298,0.008,110760.0,110750.0,0.71718762]
[1762076806967,0.008,110760.0,110750.0,0.3291028]
[1762076811713,0.008,110760.0,110750.0,0.71718762]
[1762076813741,0.068,110760.0,110750.0,0.71718762]
[1762076814780,0.068,110760.0,110750.0,0.3291028]
[1762076815126,0.068,110760.0,110750.0,0.71718762]
[1762076816159,0.064,110760.0,110750.0,0.71618762]
[1762076816504,0.065,110760.0,110750.0,1.05718762]
[1762076816746,0.061,110760.0,110750.0,1.05218762]
[1762076816950,0.061,110760.0,110750.0,1.05718762]
[1762076816951,0.065,110760.0,110750.0,1.05718762]
[1762076817150,0.065,110760.0,110750.0,1.06718761]
[1762076817349,0.061,110760.0,110750.0,1.06218761]
[1762076817556,0.061,110760.0,110750.0,1.0721876]
[1762076817758,0.065,110760.0,110750.0,1.0811876]
[1762076818386,0.065,110760.0,110750.0,1.07118761]
[1762076818676,0.065,110760.0,110750.0,1.0811876]
[1762076821857,0.065,110760.0,110750.0,1.07118761]
[1762076822057,0.065,110760.0,110750.0,1.0811876]
[1762076822843,0.065,110760.0,110750.0,1.14614191]
[1762076823598,0.065,110760.0,110750.0,1.0811876]
[1762076824011,0.065,110760.0,110750.0,1.46927242]
[1762076824481,0.065,110760.0,110750.0,1.51796965]
[1762076825062,0.05890625,110760.0,110750.0,1.46927242]
[1762076825228,0.05890625,110760.0,110750.0,1.51796884]
[1762076825866,0.05890625,110760.0,110750.0,1.12988402]
[1762076826300,0.01472656,110760.0,110750.0,1.12988402]
[1762076826510,0.005,110760.0,110750.0,1.11988403]
[1762076826734,0.05695521,110770.0,110760.0,0.1805706]
[1762076826950,0.05695521,110770.0,110760.0,1.3651173]
[1762076827179,0.05695521,110770.0,110760.0,1.34706024]
[1762076828029,0.05695521,110770.0,110760.0,1.36613167]
[1762076828944,0.01089925,110770.0,110760.0,1.36713167]
[1762076829176,0.01389925,110770.0,110760.0,0.59296203]
[1762076829440,0.01389925,110770.0,110760.0,1.36913167]
[1762076829684,0.19843699,110820.0,110800.0,0.18050541]
[1762076829894,0.56857394,110810.0,110800.0,0.0999459]
[1762076830117,0.96284947,110820.0,110810.0,0.02777]
[1762076830319,1.35093429,110820.0,110810.0,0.02777]
[1762076830540,1.36623429,110820.0,110810.0,0.01139]
[1762076830955,1.37923429,110820.0,110810.0,0.01139]
[1762076831390,0.60306465,110820.0,110810.0,0.02777]
[1762076831599,1.37923429,110820.0,110810.0,0.02777]
[1762076832074,1.36434106,110820.0,110810.0,0.02877]
[1762076832458,1.38034106,110820.0,110810.0,0.03277]
[1762076833063,0.58887142,110820.0,110810.0,0.05532]
[1762076833262,1.38034106,110820.0,110810.0,0.05532]
[1762076835005,1.36504106,110820.0,110810.0,0.05532]
[1762076840468,0.58887142,110820.0,110810.0,0.05532]
[1762076840641,1.36504106,110820.0,110810.0,0.05532]
[1762076841248,0.58887142,110820.0,110810.0,0.05532]
[1762076841639,1.36504106,110820.0,110810.0,0.05532]
[1762076845891,0.58887142,110820.0,110810.0,0.05532]
[1762076846087,1.36504106,110820.0,110810.0,0.05532]
[1762076846365,0.98535188,110820.0,110810.0,0.05532]
[1762076846548,1.36504106,110820.0,110810.0,0.05532]
[1762076847156,1.37343673,110820.0,110810.0,0.05532]
[1762076847306,1.37343683,110820.0,110810.0,0.05532]
[1762076848156,1.38851683,110820.0,110810.0,0.03277]
[1762076848579,4.85543739,110820.0,110810.0,0.005]
[1762076848791,4.85643739,110820.0,110810.0,0.005]
[1762076849001,4.91296836,110820.0,110810.0,0.005]
[1762076849463,4.93233434,110820.0,110810.0,0.005]
[1762076850110,4.8692586,110820.0,110810.0,0.005]
[1762076850317,4.45077992,110820.0,110810.0,0.005]
[1762076850523,4.4156513,110820.0,110810.0,0.005]
[1762076851168,4.4156513,110820.0,110810.0,0.02079]
[1762076851407,4.43503411,110820.0,110810.0,0.005]
[1762076851823,4.63503411,110820.0,110810.0,0.005]
[1762076852842,4.43503411,110820.0,110810.0,0.005]
[1762076853062,4.63503411,110820.0,110810.0,0.03265]
[1762076853703,4.61995411,110820.0,110810.0,0.05612]
[1762076854112,1.41995411,110820.0,110810.0,0.05612]
[1762076855849,0.64378447,110820.0,110810.0,0.05612]
[1762076856083,1.03186929,110820.0,110810.0,0.05612]
[1762076856717,0.46614325,110820.0,110810.0,0.23660912]
[1762076856925,0.23914845,110820.0,110810.0,0.05612]
[1762076857150,1.01531809,110820.0,110810.0,0.05612]
[1762076857372,1.03473056,110820.0,110810.0,0.05612]
[1762076858887,1.08599284,110820.0,110810.0,0.03265]
[1762076859426,1.08599284,110820.0,110810.0,0.05612]
[1762076859642,1.07091284,110820.0,110810.0,0.05612]
[1762076859906,1.08599284,110820.0,110810.0,0.05612]
[1762076860114,1.08599284,110820.0,110810.0,0.03265]
[1762076862021,1.08599284,110820.0,110810.0,0.05612]
[1762076862684,1.08599284,110820.0,110810.0,0.03265]
[1762076863117,1.08599284,110820.0,110810.0,0.01686]
[1762076863327,1.08599284,110820.0,110810.0,0.005]
[1762076863328,4.85989014,110820.0,110810.0,0.005]
[1762076863757,4.85992363,110820.0,110810.0,0.005]
[1762076865474,4.47178395,110820.0,110810.0,0.005]
[1762076867726,4.47078395,110820.0,110810.0,0.005]
[1762076868133,4.44173147,110820.0,110810.0,0.005]
[1762076870419,4.45588996,110820.0,110810.0,0.005]
[1762076871622,4.44173147,110820.0,110810.0,0.005]
[1762076872057,4.45689005,110820.0,110810.0,0.005]
[1762076872268,3.66661669,110820.0,110810.0,0.005]
[1762076872687,4.53255048,110820.0,110810.0,0.005]
[1762076872899,0.1805217,110790.0,110780.0,0.00914]
[1762076873120,0.97868774,110790.0,110780.0,0.03261]
[1762076873327,0.97868774,110790.0,110780.0,0.0484]
[1762076873328,0.96451648,110790.0,110780.0,0.0484]
[1762076873539,0.59571565,110790.0,110780.0,0.0484]
[1762076874196,0.60771565,110790.0,110780.0,0.0534]
[1762076874416,0.94371565,110790.0,110780.0,0.0524]
[1762076874842,0.94871565,110790.0,110780.0,0.0534]
[1762076875294,0.94071565,110790.0,110780.0,0.0494]
[1762076875498,0.94071565,110790.0,110780.0,0.0524]
[1762076875715,0.94571565,110790.0,110780.0,0.0524]
[1762076876764,1.03553466,110790.0,110780.0,0.0524]
[1762076877726,0.94571565,110790.0,110780.0,0.0524]
[1762076878572,0.99765793,110790.0,110780.0,0.004]
[1762076878791,0.99765793,110790.0,110780.0,0.03145]
[1762076878974,0.99765793,110790.0,110780.0,0.05403]
[1762076879685,0.99765793,110790.0,110780.0,0.03145]
[1762076879829,1.08747694,110790.0,110780.0,0.03145]
[1762076881701,0.99765793,110790.0,110780.0,0.03145]
[1762076881911,0.98189793,110790.0,110780.0,0.03145]
[1762076882117,1.14571565,110790.0,110780.0,0.05403]
[1762076882805,0.75765826,110790.0,110780.0,0.05403]
[1762076883020,0.55765826,110790.0,110780.0,0.05403]
[1762076883414,0.94571565,110790.0,110780.0,0.05403]
[1762076884099,0.55765826,110790.0,110780.0,0.05403]
[1762076884744,0.96147565,110790.0,110780.0,0.01539]
[1762076884957,3.7205706,110760.0,110750.0,0.04869642]
[1762076885228,3.55676918,110750.0,110740.0,0.00021915]
[1762076885438,3.58928918,110750.0,110740.0,0.00021915]
[1762076885641,3.58928918,110750.0,110730.0,0.0004]
[1762076885642,0.75678549,110740.0,110730.0,0.0004]
[1762076885867,0.78930549,110740.0,110730.0,0.0004]
[1762076886079,0.8791245,110740.0,110730.0,0.0004]
[1762076886290,0.8791245,110740.0,110730.0,0.00088462]
[1762076886954,1.25042189,110740.0,110730.0,0.00088462]
[1762076887166,0.96060288,110740.0,110730.0,0.03952462]
[1762076887372,1.1106606,110740.0,110730.0,0.03952462]
[1762076887594,1.1314206,110740.0,110730.0,0.01694462]
[1762076888431,1.1156606,110740.0,110730.0,0.01694462]
[1762076888639,1.1156606,110740.0,110730.0,0.03952462]
[1762076888837,1.20547961,110740.0,110730.0,0.03952462]
[1762076889666,1.00547961,110740.0,110730.0,0.03952462]
[1762076889870,1.1156606,110740.0,110730.0,0.03952462]
[1762076890443,0.9156606,110740.0,110730.0,0.03952462]
[1762076891033,0.52760321,110740.0,110730.0,0.03952462]
[1762076891282,0.52760321,110740.0,110730.0,0.03974379]
[1762076891646,0.9156606,110740.0,110730.0,0.03974379]
[1762076891845,0.9314206,110740.0,110730.0,0.03974379]
[1762076892727,0.9314206,110740.0,110730.0,0.19778331]
[1762076892881,0.9314206,110740.0,110730.0,0.01716379]
[1762076893099,0.9314206,110740.0,110730.0,0.10796969]
[1762076893766,0.347,110740.0,110730.0,0.31116921]
[1762076894038,0.007,110740.0,110730.0,0.31116921]
[1762076901277,0.007,110740.0,110730.0,0.32255921]
[1762076903535,0.007,110740.0,110730.0,0.7106166]
[1762076903937,0.007,110740.0,110730.0,0.32255921]
[1762076907645,0.007,110740.0,110730.0,0.7106166]
[1762076908304,0.007,110740.0,110730.0,0.73775726]
[1762076908518,0.35930335,110770.0,110760.0,0.1805706]
[1762076908723,0.35930335,110770.0,110760.0,0.22675766]
[1762076908924,0.35930335,110770.0,110760.0,0.2320006]
[1762076909751,0.36430335,110770.0,110760.0,0.2360006]
[1762076910818,0.5255543,110770.0,110760.0,0.2360006]
[1762076911023,0.347,110770.0,110760.0,0.2360006]
[1762076911247,0.91561169,110770.0,110760.0,0.2360006]
[1762076911454,0.91561169,110770.0,110760.0,0.05543]
[1762076911668,1.02444151,110770.0,110760.0,0.03213]
[1762076911870,1.02444151,110770.0,110760.0,0.0159]
[1762076912719,1.02444151,110770.0,110760.0,0.004]
[1762076913119,1.02444151,110770.0,110760.0,0.02023]
[1762076913277,1.02444151,110770.0,110760.0,0.03213]
[1762076913491,1.04378912,110770.0,110760.0,0.03213]
[1762076915183,1.04378912,110770.0,110760.0,0.2127006]
[1762076915400,1.04378912,110770.0,110760.0,0.2360006]
[1762076915777,1.02863912,110770.0,110760.0,0.2360006]
[1762076916427,1.04378912,110770.0,110760.0,0.05543]
[1762076916597,1.04378912,110770.0,110760.0,0.2360006]
[1762076916934,0.65573173,110770.0,110760.0,0.2127006]
[1762076917142,1.04378912,110770.0,110760.0,0.03213]
[1762076917357,1.05795224,110770.0,110760.0,0.03213]
[1762076919289,1.05795224,110770.0,110760.0,0.004]
[1762076919495,1.07371224,110770.0,110760.0,0.004]
[1762076920319,1.05954912,110770.0,110760.0,0.004]
[1762076921638,1.04378912,110770.0,110760.0,0.004]
[1762076922255,0.9579893,110770.0,110760.0,0.004]
[1762076922468,0.56993191,110770.0,110760.0,0.004]
[1762076922756,0.9579893,110770.0,110760.0,0.004]
[1762076923052,0.9428393,110770.0,110760.0,0.2360006]
[1762076924663,0.9579893,110770.0,110760.0,0.03213]
[1762076924875,0.9579893,110770.0,110760.0,0.2127006]
[1762076925492,0.95811502,110770.0,110760.0,0.2127006]
[1762076926571,0.95811502,110770.0,110760.0,0.03213]
[1762076926788,1.45187714,110770.0,110760.0,0.004]
[1762076927807,1.45190411,110770.0,110760.0,0.004]
[1762076928359,1.65190411,110770.0,110760.0,0.004]
[1762076930097,0.87553789,110770.0,110760.0,0.004]
[1762076930340,1.65190411,110770.0,110760.0,0.004]
[1762076930658,1.63614411,110770.0,110760.0,0.004]
[1762076931440,1.65190411,110770.0,110760.0,0.004]
[1762076938978,0.87553789,110770.0,110760.0,0.004]
[1762076939185,1.65190411,110770.0,110760.0,0.004]
[1762076940195,1.263721,110770.0,110760.0,0.004]
[1762076940699,0.95814199,110770.0,110760.0,0.03182]
[1762076940987,0.95814199,110770.0,110760.0,0.2123906]
[1762076941246,0.93876741,110770.0,110760.0,0.2353706]
[1762076941510,0.95818242,110770.0,110760.0,0.2353706]
[1762076941746,0.94303242,110770.0,110760.0,0.2353706]
[1762076942009,0.94303242,110770.0,110760.0,0.0548]
[1762076942252,0.95843242,110770.0,110760.0,0.0548]
[1762076943016,0.36641501,110770.0,110760.0,0.2353706]
[1762076943246,0.75459812,110770.0,110760.0,0.2353706]
[1762076943456,0.59515242,110770.0,110760.0,0.2353706]
[1762076943672,0.59515242,110770.0,110760.0,0.0548]
[1762076944235,0.59515242,110770.0,110760.0,0.2353706]
[1762076944437,0.70825143,110770.0,110760.0,0.03182]
[1762076944649,0.72401143,110770.0,110760.0,0.004]
[1762076944848,0.72504849,110770.0,110760.0,0.004]
[1762076946193,1.1132316,110770.0,110760.0,0.004]
[1762076946396,0.61946948,110770.0,110760.0,0.03182]
[1762076946630,0.60406948,110770.0,110760.0,0.2123906]
[1762076946826,0.60406948,110770.0,110760.0,0.2353706]
[1762076946827,0.21588637,110770.0,110760.0,0.2353706]
[1762076947027,0.41563518,110770.0,110760.0,0.2353706]
[1762076947367,0.59618948,110770.0,110760.0,0.2353706]
[1762076947566,0.41563518,110770.0,110760.0,0.2353706]
[1762076947968,0.39622017,110770.0,110760.0,0.2353706]
[1762076948674,0.59619177,110770.0,110760.0,0.0548]
[1762076948872,0.70929078,110770.0,110760.0,0.03182]
[1762076949073,0.70929078,110770.0,110760.0,0.004]
[1762076949960,4.841417,110770.0,110760.0,0.004]
[1762076950144,4.96059963,110770.0,110760.0,0.004]
[1762076950342,4.96902541,110770.0,110760.0,0.004]
[1762076950770,4.9838769,110770.0,110760.0,0.004]
[1762076951005,0.18060321,110740.0,110730.0,0.00110379]
[1762076951298,1.04266104,110740.0,110730.0,0.00110379]
[1762076951497,1.02848978,110740.0,110730.0,0.01720379]
[1762076952054,1.02848978,110740.0,110730.0,0.02120379]
[1762076952253,1.03348978,110740.0,110730.0,0.02120379]
[1762076953907,1.03548978,110740.0,110730.0,0.02120379]
[1762076954346,0.18760321,110740.0,110730.0,0.22480331]
[1762076954559,0.007,110740.0,110730.0,0.22480331]
[1762076955202,0.18760321,110740.0,110730.0,0.22480331]
[1762076955416,0.007,110740.0,110730.0,0.22480331]
[1762076956128,0.18760321,110740.0,110730.0,0.22480331]
[1762076957280,0.007,110740.0,110730.0,0.22480331]
[1762076961066,0.18760321,110740.0,110730.0,0.22480331]
[1762076961489,0.007,110740.0,110730.0,0.23652331]
[1762076961911,0.18760321,110740.0,110730.0,0.23652331]
[1762076962348,0.007,110740.0,110730.0,0.23652331]
[1762076965971,0.18760321,110740.0,110730.0,0.23652331]
[1762076966950,0.18760321,110740.0,110730.0,0.05590379]
[1762076967147,0.007,110740.0,110730.0,0.23652331]
[1762076967766,0.18760321,110740.0,110730.0,0.23652331]
[1762076968190,0.007,110740.0,110730.0,0.23652331]
[1762076971258,0.18760321,110740.0,110730.0,0.23652331]
[1762076971470,0.62883368,110740.0,110730.0,0.05590379]
[1762076972562,0.18760321,110740.0,110730.0,0.05590379]
[1762076973567,0.18760321,110740.0,110730.0,0.23652331]